fUST/lending_fUST_20250807
["ID","MTS","AMOUNT","RATE_DAILY","PERIOD"]
[377861126,1754581847086,-5715.51,0.00022739,2]
[377861127,1754581847095,-460.0,0.00022739,2]
[377861128,1754581847105,-460.0,0.00022739,2]
[377861129,1754581847115,-718.53,0.00022739,2]
[377861130,1754581847124,-460.0,0.00022739,2]
[377861131,1754581847134,-1316.95,0.00022739,2]
[377861132,1754581847143,-386.11473464,0.00022739,2]
[377861133,1754581847153,-460.0,0.00022739,2]
[377861134,1754581847162,-460.0,0.00022739,2]
[377861135,1754581847172,-460.0,0.00022739,2]
[377861136,1754581847181,-460.0,0.00022739,2]
[377861137,1754581847191,-460.0,0.00022739,2]
[377861138,1754581847200,-2777.59,0.00022739,2]
[377861139,1754581847210,-2762.9,0.00022739,2]
[377861140,1754581847219,-306.03,0.00022739,2]
[377861141,1754581847229,-460.0,0.00022739,2]
[377861142,1754581847238,-1992.07,0.00022739,2]
[377861143,1754581847248,-460.0,0.00022739,2]
[377861144,1754581847257,-1159.93,0.00022739,2]
[377861145,1754581847267,-460.0,0.00022739,2]
[377861146,1754581847276,-460.0,0.00022739,2]
[377861147,1754581847285,-937.11,0.00022739,2]
[377861148,1754581847295,-596.93,0.00022739,2]
[377861149,1754581847305,-1042.17,0.00022739,2]
[377861150,1754581847314,-923.89,0.00022739,2]
[377861151,1754581847324,-165.06954777,0.00022739,2]
[377861152,1754581847333,-460.0,0.00022739,2]
[377861153,1754581847343,-1792.97,0.00022739,2]
[377861154,1754581847352,-460.0,0.00022739,2]
[377861155,1754581847362,-885.7,0.00022739,2]
[377861156,1754581847371,-683.97,0.00022739,2]
[377861157,1754581847381,-460.0,0.00022739,2]
[377861158,1754581847390,-1195.65,0.00022739,2]
[377861159,1754581847400,-2502.96,0.00022739,2]
[377861160,1754581847410,-460.0,0.00022739,2]
[377861161,1754581847419,-1706.87,0.00022739,2]
[377861162,1754581847430,-656.44,0.00022739,2]
[377861163,1754581847440,-564.07,0.00022739,2]
[377861164,1754581847450,-460.0,0.00022739,2]
[377861165,1754581847459,-460.0,0.00022739,2]
[377861166,1754581847468,-2496.1,0.00022739,2]
[377861167,1754581847478,-565.34,0.00022739,2]
[377861168,1754581847488,-461.74,0.00022739,2]
[377861169,1754581847498,-460.0,0.00022739,2]
[377861170,1754581847508,-460.0,0.00022739,2]
[377861171,1754581847518,-219.92921328,0.00022739,2]
[377861172,1754581847528,-502.67,0.00022739,2]
[377861173,1754581847538,-460.0,0.00022739,2]
[377861174,1754581847548,-460.0,0.00022739,2]
[377861175,1754581847557,-940.66,0.00022739,2]
[377861176,1754581847567,-460.0,0.00022739,2]
[377861177,1754581847576,-460.0,0.00022739,2]
[377861178,1754581847590,-821.67,0.00022739,2]
[377861179,1754581847599,-600.38,0.00022739,2]
[377861180,1754581847610,-1566.14,0.00022739,2]
[377861181,1754581847619,-666.34,0.00022739,2]
[377861182,1754581847629,-460.0,0.00022739,2]
[377861183,1754581847639,-1443.34,0.00022739,2]
[377861184,1754581847648,-2697.43,0.00022739,2]
[377861185,1754581847658,-460.0,0.00022739,2]
[377861186,1754581847667,-684.81,0.00022739,2]
[377861187,1754581847677,-460.0,0.00022739,2]
[377861188,1754581847686,-460.0,0.00022739,2]
[377861189,1754581847695,-460.0,0.00022739,2]
[377861190,1754581847705,-460.0,0.00022739,2]
[377861191,1754581847715,-460.0,0.00022739,2]
[377861192,1754581847725,-460.0,0.00022739,2]
[377861193,1754581847734,-460.0,0.00022739,2]
[377861194,1754581847745,-229.77,0.00022739,2]
[377861195,1754581847754,-460.0,0.00022739,2]
[377861196,1754581847763,-538.63,0.00022739,2]
[377861197,1754581847773,-820.79,0.00022739,2]
[377861198,1754581847782,-803.73,0.00022739,2]
[377861199,1754581847791,-266.63285556,0.00022769,2]
[377861200,1754581847801,-151.0,0.00022769,2]
[377861201,1754581847810,-246.01908643,0.00022769,2]
[377861202,1754581847822,-500.0,0.00022769,2]
[377861203,1754581847832,-151.0,0.00022769,2]
[377861204,1754581847841,-151.0,0.00022769,2]
[377861205,1754581847852,-151.0,0.00022769,2]
[377861206,1754581847861,-151.0,0.00022769,2]
[377861207,1754581847870,-151.0,0.00022769,2]
[377861208,1754581847879,-503.58142104,0.00022773,2]
[377861209,1754581847888,-500.0,0.00022773,2]
[377861210,1754581847898,-600.0,0.00022773,2]
[377861211,1754581847908,-500.76409963,0.00022773,2]
[377861212,1754581847917,-500.0,0.00022773,2]
[377861213,1754581847927,-500.0,0.00022773,2]
[377861214,1754581847936,-500.0,0.00022773,2]
[377861215,1754581847945,-500.0,0.00022773,2]
[377861216,1754581847954,-150.0,0.00022773,2]
[377861217,1754581847963,-500.0,0.00022773,2]
[377861218,1754581847972,-500.0,0.00022773,2]
[377861219,1754581847981,-367.63426456,0.00022773,2]
[377861220,1754581847990,-158.72510713,0.00022773,2]
[377861221,1754581848000,-500.0,0.00022773,2]
[377861222,1754581848009,-500.0,0.00022773,2]
[377861223,1754581848018,-500.0,0.00022773,2]
[377861224,1754581848027,-500.0,0.00022773,2]
[377861225,1754581848036,-337.82281343,0.00022773,2]
[377861226,1754581848046,-500.0,0.00022773,2]
[377861227,1754581848055,-500.0,0.00022773,2]
[377861228,1754581848065,-500.0,0.00022773,2]
[377861229,1754581848075,-500.0,0.00022773,2]
[377861230,1754581848084,-500.0,0.00022773,2]
[377861231,1754581848094,-500.0,0.00022773,2]
[377861232,1754581848104,-501.61245497,0.00022773,2]
[377861233,1754581848113,-318.63580423,0.00022773,2]
[377861234,1754581848122,-520.94686156,0.00022773,2]
[377861235,1754581848131,-500.0,0.00022773,2]
[377861236,1754581848141,-500.0,0.00022773,2]
[377861237,1754581848151,-500.0,0.00022773,2]
[377861238,1754581848160,-500.0,0.00022773,2]
[377861239,1754581848169,-500.0,0.00022773,2]
[377861240,1754581848178,-151.0,0.000229,9]
[377861241,1754581848188,-151.0,0.000229,5]
[377861242,1754581848198,-151.0,0.000229,9]
[377861243,1754581848207,-600.0,0.00022962,2]
[377861244,1754581848218,-600.0,0.00022962,2]
[377861245,1754581848228,-160.0,0.00023,2]
[377861246,1754581848238,-460.0,0.00023013,2]
[377861247,1754581848248,-955.52,0.00023013,2]
[377861248,1754581848257,-1143.45,0.00023013,2]
[377861249,1754581848268,-487.2,0.00023013,2]
[377861250,1754581848277,-460.0,0.00023013,2]
[377861251,1754581848287,-589.29,0.00023013,2]
[377861252,1754581848296,-1215.22,0.00023013,2]
[377861253,1754581848306,-460.0,0.00023013,2]
[377861254,1754581848316,-460.0,0.00023013,2]
[377861255,1754581848326,-753.58,0.00023013,2]
[377861256,1754581848335,-460.0,0.00023013,2]
[377861257,1754581848345,-605.12,0.00023013,2]
[377861258,1754581848355,-460.0,0.00023013,2]
[377861259,1754581848364,-543.31658908,0.00023013,2]
[377861260,1754581848374,-460.0,0.00023013,2]
[377861261,1754581848383,-460.0,0.00023013,2]
[377861262,1754581848392,-460.0,0.00023013,2]
[377861263,1754581848402,-460.0,0.00023013,2]
[377861264,1754581848411,-460.0,0.00023013,2]
[377861265,1754581848421,-806.18,0.00023013,2]
[377861266,1754581848430,-460.0,0.00023013,2]
[377861267,1754581848440,-789.4,0.00023013,2]
[377861268,1754581848450,-5375.29,0.00023013,2]
[377861269,1754581848459,-370.53597588,0.00023013,2]
[377861270,1754581848473,-362.1,0.00023013,2]
[377861271,1754581848482,-250.67559645,0.00023013,2]
[377861272,1754581848492,-609.27353124,0.00023013,2]
[377861273,1754581848502,-886.77,0.00023013,2]
[377861274,1754581848512,-5715.51,0.00023013,2]
[377861275,1754581848522,-460.0,0.00023013,2]
[377861276,1754581848531,-460.0,0.00023013,2]
[377861277,1754581848541,-718.53,0.00023013,2]
[377861278,1754581848551,-460.0,0.00023013,2]
[377861279,1754581848560,-1316.95,0.00023013,2]
[377861280,1754581848570,-460.0,0.00023013,2]
[377861281,1754581848580,-460.0,0.00023013,2]
[377861282,1754581848590,-460.0,0.00023013,2]
[377861283,1754581848600,-460.0,0.00023013,2]
[377861284,1754581848610,-460.0,0.00023013,2]
[377861285,1754581848621,-2777.59,0.00023013,2]
[377861286,1754581848630,-2762.9,0.00023013,2]
[377861287,1754581848640,-460.0,0.00023013,2]
[377861288,1754581848650,-1992.07,0.00023013,2]
[377861289,1754581848659,-1159.93,0.00023013,2]
[377861290,1754581848669,-460.0,0.00023013,2]
[377861291,1754581848678,-460.0,0.00023013,2]
[377861292,1754581848688,-460.0,0.00023013,2]
[377861293,1754581848697,-937.11,0.00023013,2]
[377861294,1754581848707,-596.93,0.00023013,2]
[377861295,1754581848716,-1042.17,0.00023013,2]
[377861296,1754581848725,-923.89,0.00023013,2]
[377861297,1754581848735,-460.0,0.00023013,2]
[377861298,1754581848744,-1792.97,0.00023013,2]
[377861299,1754581848754,-460.0,0.00023013,2]
[377861300,1754581848764,-885.7,0.00023013,2]
[377861301,1754581848774,-683.97,0.00023013,2]
[377861302,1754581848784,-460.0,0.00023013,2]
[377861303,1754581848794,-1195.65,0.00023013,2]
[377861304,1754581848804,-2502.96,0.00023013,2]
[377861305,1754581848814,-338.65221199,0.00023013,2]
[377861306,1754581848830,-1706.87,0.00023013,2]
[377861307,1754581848840,-656.44,0.00023013,2]
[377861308,1754581848850,-564.07,0.00023013,2]
[377861309,1754581848861,-460.0,0.00023013,2]
[377861310,1754581848871,-460.0,0.00023013,2]
[377861311,1754581848880,-2496.1,0.00023013,2]
[377861312,1754581848890,-565.34,0.00023013,2]
[377861313,1754581848900,-460.0,0.00023013,2]
[377861314,1754581848911,-460.0,0.00023013,2]
[377861315,1754581848921,-502.67,0.00023013,2]
[377861316,1754581848931,-460.0,0.00023013,2]
[377861317,1754581848941,-460.0,0.00023013,2]
[377861318,1754581848950,-940.66,0.00023013,2]
[377861319,1754581848960,-460.0,0.00023013,2]
[377861320,1754581848969,-460.0,0.00023013,2]
[377861321,1754581848979,-821.67,0.00023013,2]
[377861322,1754581848988,-600.38,0.00023013,2]
[377861323,1754581848998,-1566.14,0.00023013,2]
[377861324,1754581849008,-666.34,0.00023013,2]
[377861325,1754581849141,-150.12650732,0.00023013,2]
[377861326,1754581849150,-1443.34,0.00023013,2]
[377861327,1754581849160,-2697.43,0.00023013,2]
[377861328,1754581849169,-605.49200384,0.00023013,2]
[377861329,1754581849179,-684.81,0.00023013,2]
[377861330,1754581849188,-460.0,0.00023013,2]
[377861331,1754581849198,-460.0,0.00023013,2]
[377861332,1754581849207,-460.0,0.00023013,2]
[377861333,1754581849216,-460.0,0.00023013,2]
[377861334,1754581849226,-460.0,0.00023013,2]
[377861335,1754581849235,-460.0,0.00023013,2]
[377861336,1754581849244,-538.63,0.00023013,2]
[377861337,1754581849253,-460.0,0.00023013,2]
[377861338,1754581849262,-820.79,0.00023013,2]
[377861339,1754581849272,-803.73,0.00023013,2]
[377861340,1754581849281,-392.99,0.00023043,2]
[377861341,1754581849290,-156.67850184,0.00023043,2]
[377861342,1754581849300,-201.35460193,0.00023043,2]
[377861343,1754581849310,-202.88886188,0.00023043,2]
[377861344,1754581849319,-151.0,0.00023043,2]
[377861345,1754581849328,-248.67033523,0.00023043,2]
[377861346,1754581849339,-1056.26430805,0.00023051,2]
[377861347,1754581849348,-4147.8705996,0.00023053,2]
[377861348,1754581849357,-1500.0,0.00023068,2]
[377861349,1754581849366,-1500.0,0.00023068,2]
[377861350,1754581849376,-500.0,0.00023073,2]
[377861351,1754581849385,-151.0,0.000231,6]
[377861352,1754581849394,-500.0,0.00023173,2]
[377861353,1754581849404,-1788.56,0.00023174,2]
[377861354,1754581849413,-1646.67618749,0.00023268,2]
[377861355,1754581849422,-1500.0,0.00023268,2]
[377861356,1754581849432,-1500.0,0.00023268,2]
[377861357,1754581849441,-1500.0,0.00023268,2]
[377861358,1754581849450,-1001.38135654,0.00023268,2]
[377861359,1754581849459,-1500.0,0.00023268,2]
[377861360,1754581849468,-160.0,0.00023285,2]
[377861361,1754581849478,-312.16666667,0.00023285,2]
[377861362,1754581849487,-45.01943182,0.00023285,2]
[377861363,1754581849644,-416.35016238,0.00023285,2]
[377861364,1754581849654,-216.52217562,0.00023285,2]
[377861365,1754581849663,-1630.327662,0.00023285,2]
[377861366,1754581849853,-1262.66,0.00022191,2]
[377861367,1754581849864,-460.0,0.00022191,2]
[377861368,1754581849875,-460.0,0.00022465,2]
[377861369,1754581849885,-460.0,0.00022465,2]
[377861370,1754581849896,-1262.66,0.00022465,2]
[377861371,1754581849906,-460.0,0.00022739,2]
[377861372,1754581849916,-460.0,0.00023013,2]
[377861373,1754581849926,-11030.57673213,0.00023285,2]
[377861374,1754581849935,-842.63596909,0.00023285,2]
[377861375,1754581849945,-160.0,0.00023285,2]
[377861376,1754581849955,-160.0,0.00023285,2]
[377861377,1754581849965,-231.83071243,0.00023285,2]
[377861378,1754581849975,-527.57568145,0.00023285,2]
[377861379,1754581849984,-215.31718835,0.00023285,2]
[377861380,1754581849995,-160.0,0.00023285,2]
[377861381,1754581850004,-160.0,0.00023285,2]
[377861382,1754581850014,-160.0,0.00023285,2]
[377861383,1754581850023,-160.0,0.00023285,2]
[377861384,1754581850033,-160.0,0.00023285,2]
[377861385,1754581850043,-460.0,0.00023287,2]
[377861386,1754581850052,-955.52,0.00023287,2]
[377861387,1754581850062,-1143.45,0.00023287,2]
[377861388,1754581850079,-487.2,0.00023287,2]
[377861389,1754581850094,-460.0,0.00023287,2]
[377861390,1754581850107,-589.29,0.00023287,2]
[377861391,1754581850119,-1215.22,0.00023287,2]
[377861392,1754581850134,-371.44,0.00023287,2]
[377861393,1754581850148,-460.0,0.00023287,2]
[377861394,1754581850162,-753.58,0.00023287,2]
[377861395,1754581850177,-460.0,0.00023287,2]
[377861396,1754581850192,-605.12,0.00023287,2]
[377861397,1754581850205,-460.0,0.00023287,2]
[377861398,1754581850219,-460.0,0.00023287,2]
[377861399,1754581850231,-540.08228992,0.00023287,2]
[377861400,1754581850245,-596.59,0.00023287,2]
[377861401,1754581850259,-515.42345721,0.00023287,2]
[377861402,1754581850270,-460.0,0.00023287,2]
[377861403,1754581850282,-806.18,0.00023287,2]
[377861404,1754581850295,-549.62,0.00023287,2]
[377861405,1754581850310,-789.4,0.00023287,2]
[377861406,1754581850323,-892.49738143,0.00023287,2]
[377861407,1754581850340,-572.325,0.00023287,2]
[377861408,1754581850858,-3910.46761857,0.00023287,2]
[377861409,1754581850871,-886.77,0.00023287,2]
[377861410,1754581850883,-5715.51,0.00023287,2]
[377861411,1754581850895,-460.0,0.00023287,2]
[377861412,1754581850907,-460.0,0.00023287,2]
[377861413,1754581850919,-718.53,0.00023287,2]
[377861414,1754581850931,-460.0,0.00023287,2]
[377861415,1754581850943,-1316.95,0.00023287,2]
[377861416,1754581850954,-460.0,0.00023287,2]
[377861417,1754581850967,-460.0,0.00023287,2]
[377861418,1754581850978,-460.0,0.00023287,2]
[377861419,1754581850990,-460.0,0.00023287,2]
[377861420,1754581851002,-2777.59,0.00023287,2]
[377861421,1754581851012,-2762.9,0.00023287,2]
[377861422,1754581851022,-460.0,0.00023287,2]
[377861423,1754581851031,-1992.07,0.00023287,2]
[377861424,1754581851040,-1159.93,0.00023287,2]
[377861425,1754581851050,-565.82,0.00023287,2]
[377861426,1754581851059,-460.0,0.00023287,2]
[377861427,1754581851069,-460.0,0.00023287,2]
[377861428,1754581851078,-937.11,0.00023287,2]
[377861429,1754581851088,-596.93,0.00023287,2]
[377861430,1754581851097,-1042.17,0.00023287,2]
[377861431,1754581851107,-923.89,0.00023287,2]
[377861432,1754581851116,-460.0,0.00023287,2]
[377861433,1754581851125,-1792.97,0.00023287,2]
[377861434,1754581851135,-473.74,0.00023287,2]
[377861435,1754581851144,-885.7,0.00023287,2]
[377861436,1754581851154,-151.0,0.00023287,7]
[377861437,1754581851163,-683.97,0.00023287,2]
[377861438,1754581851172,-556.19,0.00023287,2]
[377861439,1754581851183,-1195.65,0.00023287,2]
[377861440,1754581851192,-2502.96,0.00023287,2]
[377861441,1754581851201,-1706.87,0.00023287,2]
[377861442,1754581851211,-656.44,0.00023287,2]
[377861443,1754581851220,-564.07,0.00023287,2]
[377861444,1754581851229,-460.0,0.00023287,2]
[377861445,1754581851239,-460.0,0.00023287,2]
[377861446,1754581851248,-2496.1,0.00023287,2]
[377861447,1754581851258,-565.34,0.00023287,2]
[377861448,1754581851268,-460.0,0.00023287,2]
[377861449,1754581851278,-460.0,0.00023287,2]
[377861450,1754581851287,-502.67,0.00023287,2]
[377861451,1754581851296,-460.0,0.00023287,2]
[377861452,1754581851306,-940.66,0.00023287,2]
[377861453,1754581851315,-460.0,0.00023287,2]
[377861454,1754581851325,-821.67,0.00023287,2]
[377861455,1754581851334,-600.38,0.00023287,2]
[377861456,1754581851344,-666.34,0.00023287,2]
[377861457,1754581851596,-1566.14,0.00023287,2]
[377861458,1754581851617,-1443.34,0.00023287,2]
[377861459,1754581851634,-2697.43,0.00023287,2]
[377861460,1754581851644,-684.81,0.00023287,2]
[377861461,1754581851654,-460.0,0.00023287,2]
[377861462,1754581851663,-460.0,0.00023287,2]
[377861463,1754581851673,-460.0,0.00023287,2]
[377861464,1754581851683,-460.0,0.00023287,2]
[377861465,1754581851692,-460.0,0.00023287,2]
[377861466,1754581851702,-460.0,0.00023287,2]
[377861467,1754581851711,-538.63,0.00023287,2]
[377861468,1754581851721,-460.0,0.00023287,2]
[377861469,1754581851730,-820.79,0.00023287,2]
[377861470,1754581851739,-803.73,0.00023287,2]
[377861471,1754581851748,-460.0,0.00023287,2]
[377861472,1754581851758,-151.0,0.00023317,2]
[377861473,1754581851767,-1200.0,0.00023321,2]
[377861474,1754581851776,-250.0,0.00023321,2]
[377861475,1754581851786,-1000.0,0.00023321,2]
[377861476,1754581851795,-500.0,0.00023321,2]
[377861477,1754581851805,-1000.0,0.00023321,2]
[377861478,1754581851814,-500.86414136,0.00023321,2]
[377861479,1754581851825,-1000.0,0.00023321,2]
[377861480,1754581851835,-1000.0,0.00023321,2]
[377861481,1754581851844,-155.2313519,0.00023321,2]
[377861482,1754581851853,-1000.0,0.00023321,2]
[377861483,1754581851862,-420.0,0.0002339,2]
[377861484,1754581851872,-1680.0,0.00023391,2]
[377861485,1754581851881,-151.0,0.000234,7]
[377861486,1754581851891,-151.0,0.00023409,7]
[377861487,1754581851903,-1680.0,0.00023499,2]
[377861488,1754581851914,-460.0,0.00023561,2]
[377861489,1754581851924,-955.52,0.00023561,2]
[377861490,1754581851935,-1143.45,0.00023561,2]
[377861491,1754581851945,-487.2,0.00023561,2]
[377861492,1754581851954,-460.0,0.00023561,2]
[377861493,1754581851964,-589.29,0.00023561,2]
[377861494,1754581851973,-1215.22,0.00023561,2]
[377861495,1754581851983,-460.0,0.00023561,2]
[377861496,1754581851993,-151.0,0.00023561,7]
[377861497,1754581852002,-151.0,0.00023561,7]
[377861498,1754581852012,-753.58,0.00023561,2]
[377861499,1754581852021,-460.0,0.00023561,2]
[377861500,1754581852032,-605.12,0.00023561,2]
[377861501,1754581852042,-460.0,0.00023561,2]
[377861502,1754581852051,-151.0,0.00023561,7]
[377861503,1754581852060,-460.0,0.00023561,2]
[377861504,1754581852070,-151.0,0.00023561,7]
[377861505,1754581852079,-163.92,0.00023561,2]
[377861506,1754581852089,-217.380083,0.00023561,7]
[377861507,1754581852099,-806.18,0.00023561,2]
[377861508,1754581852108,-789.4,0.00023561,2]
[377861509,1754581852118,-5375.29,0.00023561,2]
[377861510,1754581852128,-886.77,0.00023561,2]
[377861511,1754581852138,-5715.51,0.00023561,2]
[377861512,1754581852147,-460.0,0.00023561,2]
[377861513,1754581852157,-460.0,0.00023561,2]
[377861514,1754581852166,-718.53,0.00023561,2]
[377861515,1754581852177,-460.0,0.00023561,2]
[377861516,1754581852186,-1316.95,0.00023561,2]
[377861517,1754581852195,-460.0,0.00023561,2]
[377861518,1754581852206,-460.0,0.00023561,2]
[377861519,1754581852215,-460.0,0.00023561,2]
[377861520,1754581852226,-460.0,0.00023561,2]
[377861521,1754581852237,-2777.59,0.00023561,2]
[377861522,1754581852247,-547.1843147,0.00023561,2]
[377861523,1754581852257,-1992.07,0.00023561,2]
[377861524,1754581852267,-1159.93,0.00023561,2]
[377861525,1754581852277,-460.0,0.00023561,2]
[377861526,1754581852287,-460.0,0.00023561,2]
[377861527,1754581852299,-937.11,0.00023561,2]
[377861528,1754581852309,-596.93,0.00023561,2]
[377861529,1754581852319,-151.0,0.00023561,7]
[377861530,1754581852329,-1042.17,0.00023561,2]
[377861531,1754581852339,-923.89,0.00023561,2]
[377861532,1754581852348,-299.340972,0.00023561,7]
[377861533,1754581852358,-299.340972,0.00023561,7]
[377861534,1754581852368,-460.0,0.00023561,2]
[377861535,1754581852383,-1792.97,0.00023561,2]
[377861536,1754581852394,-885.7,0.00023561,2]
[377861537,1754581852404,-683.97,0.00023561,2]
[377861538,1754581852413,-1195.65,0.00023561,2]
[377861539,1754581852423,-2502.96,0.00023561,2]
[377861540,1754581852432,-656.44,0.00023561,2]
[377861541,1754581852442,-1706.87,0.00023561,2]
[377861542,1754581852452,-564.07,0.00023561,2]
[377861543,1754581852462,-460.0,0.00023561,2]
[377861544,1754581852472,-460.0,0.00023561,2]
[377861545,1754581852482,-1971.59302857,0.00023561,2]
[377861546,1754581852793,-524.50697143,0.00023561,2]
[377861547,1754581852802,-565.34,0.00023561,2]
[377861548,1754581852812,-460.0,0.00023561,2]
[377861549,1754581852826,-274.45321749,0.00023561,2]
[377861551,1754581901668,3050.06,0.00023,60]
[377861553,1754581968574,10731.89641324,0.00021417,2]
[377861554,1754581968599,15000.0,0.00021417,2]
[377861555,1754581968624,15000.0,0.00021417,2]
[377861556,1754581968648,15000.0,0.00021417,2]
[377861557,1754581968671,15000.0,0.00021417,2]
[377861558,1754581968694,15000.0,0.00021417,2]
[377861559,1754581968718,15000.0,0.00021417,2]
[377861560,1754581968742,15000.0,0.00021417,2]
[377861561,1754581968766,15000.0,0.00021417,2]
[377861562,1754581968789,15000.0,0.00021417,2]
[377861563,1754581968812,15000.0,0.00021417,2]
[377861564,1754581968836,15000.0,0.00021417,2]
[377861565,1754581968863,15000.0,0.00021417,2]
[377861566,1754581968885,15000.0,0.00021417,2]
[377861567,1754581968910,15000.0,0.00021417,2]
[377861568,1754581968934,15000.0,0.00021417,2]
[377861569,1754581968959,15000.0,0.00021417,2]
[377861570,1754581968981,15000.0,0.00021417,2]
[377861571,1754581969006,15000.0,0.00021417,2]
[377861572,1754581969033,15000.0,0.00021417,2]
[377861573,1754581969062,15000.0,0.00021417,2]
[377861574,1754581969089,15000.0,0.00021417,2]
[377861575,1754581969119,15000.0,0.00021417,2]
[377861576,1754581969147,15000.0,0.00021417,2]
[377861577,1754581969173,14268.10358676,0.00021417,2]
[377861578,1754582001299,731.89641324,0.00021481,2]
[377861579,1754582001340,4268.10358676,0.00021481,2]
[377861580,1754582007926,10731.89641324,0.000199,2]
[377861581,1754582007959,851.56125451,0.000199,2]
[377861582,1754582016543,5000.0,0.00021481,2]
[377861583,1754582031665,5000.0,0.00021481,2]
[377861584,1754582046650,4148.43874549,0.00021481,2]
[377861585,1754582046677,851.56125451,0.00021481,2]
[377861586,1754582054513,14148.43874549,0.00020803,2]
[377861587,1754582054537,10751.56125451,0.00020803,2]
[377861590,1754582061913,1736.77426866,0.00021481,2]
[377861591,1754582069013,336.550231,0.00020764,2]
[377861593,1754582072868,150.0,0.00030137,120]
[377861594,1754582101326,918.01016949,0.00021187,2]
[377861595,1754582154259,1005.1865751,0.00021451,2]
[377861596,1754582173196,251.91750124,0.000199,2]
[377861597,1754582173234,11187.94700123,0.000199,2]
[377861598,1754582186559,277.34510713,0.00021451,2]
[377861599,1754582187080,3534.70789164,0.00021481,2]
[377861600,1754582187104,1465.29210836,0.00021481,2]
[377861601,1754582203494,5000.0,0.00021481,2]
[377861604,1754582210011,932.17582062,0.00021005,2]
[377861606,1754582211430,7602.53207102,0.00020803,2]
[377861607,1754582211454,10904.03091258,0.00020803,2]
[377861609,1754582219038,4095.96908742,0.00021481,2]
[377861610,1754582219062,904.03091258,0.00021481,2]
[377861611,1754582227965,14095.96908742,0.00021396,2]
[377861612,1754582227992,9810.90078011,0.00021396,2]
[377861613,1754582234854,5000.0,0.00021481,2]
[377861614,1754582250106,189.09921989,0.00021481,2]
[377861615,1754582250132,4810.90078011,0.00021481,2]
[377861616,1754582266488,5000.0,0.00021481,2]
[377861617,1754582282990,5000.0,0.00021481,2]
[377861619,1754582291381,189.09921989,0.00021396,2]
[377861620,1754582291405,88.24588724,0.00021396,2]
[377861621,1754582300768,5000.0,0.00021481,2]
[377861624,1754582307974,204.654601,0.00020999,2]
[377861625,1754582316130,5000.0,0.00021481,2]
[377861626,1754582319017,1553.24942858,0.00021481,2]
[377861627,1754582319107,1553.24942858,0.00021481,2]
[377861628,1754582332259,1600.6006546,0.00021481,2]
[377861629,1754582332289,3399.3993454,0.00021481,2]
[377861630,1754582348057,5000.0,0.00021481,2]
[377861631,1754582356546,6600.6006546,0.000199,2]
[377861632,1754582356578,4457.91946892,0.000199,2]
[377861633,1754582364089,5000.0,0.00021481,2]
[377861640,1754582380075,5000.0,0.00021481,2]
[377861641,1754582390800,542.08053108,0.00021084,2]
[377861642,1754582390823,724.99124382,0.00021084,2]
[377861643,1754582396064,5000.0,0.00021481,2]